Workbook

Sheet Sheet3
A4: OPS Sporting SAD 2021-2024 | G4: TANB | H4: =F9 -> 0.0525 | J4: Data Simulação: | K4: =+TODAY() -> 2021-12-03
G5: Prazo | H5: 3 Anos
B7: Montante a investir | F7: 2000
B9: TANB | F9: 0.0525
B11: TIR Líquida de Impostos e Comissões | F11: =XIRR(E59:AI59,E46:AI46,) -> 0.01947911084
B13: Juros Líquidos de Impostos e Comissões | F13: =+SUM(E59:AI59) -> 117.200648 | AF13: Sim | AG13: Internet
AF14: Não | AG14: Balcão/Telefone
B15: O Cliente já paga Comissão de Guarda de Títulos ? | F15: 2
B17: O Cliente tem Notas de Lançamento digitais? | F17: 2
B19: Canal de Subscrição | F19: 1
B21: Regime Fiscal | F21: 1
B23: Rubricas | D23: Preçário | E23: Cash-Flows Totais
B24: Comissão Guarda Títulos ** | D24: =+IF($F$15=1,0,IF($F$19=1,5,5)) -> 5 | E24: =+SUM(E47:W47) -> -60
B25: Comissão de Subscrição* | D25: =IF($F$19=1,0.25%,IF($F$7<250000,"0,45%","0,325%")) -> 0.0025 | E25: =+SUM(E49:W49) -> -12
B26: Imposto do Selo | D26: 0.04 | E26: -0.48
B27: Pagamento de Juros Bruto | D27: - | E27: 315
B28: IRS | D28: =+IF($F$21=1, 28%, IF($F$21=2, 22.4%, IF($F$21=3,22.4%,17.5%))) -> 0.28 | E28: -88.2
B29: Comissão Rendimentos ** | D29: 0.018 | E29: -4.0824
B30: Comissão Reembolso ** | D30: 0.002625 | E30: -5.25
B31: Portes | D31: =+IF(OR($F$17=2,$F$21=2,$F$21=4),0.4,0) -> 0.4 | E31: -2.8
B32: Despesas Expediente** | D32: =+IF(OR($F$17=2,$F$21=2,$F$21=4),1.05,0) -> 1.05 | E32: =+SUM(E56:AI56) -> -7.35
B33: IVA | D33: 0.23 | E33: =+SUM(E57:W57) -> -17.636952
B34: TOTAL | E34: =+SUM(E24:E33) -> 117.200648
B35: * Acresce IS 4%
B36: ** Acresce IVA 23%
B38: Disclamer: Os valores constantes da presente simulação correspondem à taxa interna de rentabilidade (TIR) para um investimento nas OPS Obrigações Sporting SAD 2021-2024, ao Preço de Emissão, assumindo que as mesmas são detidas por um investidor residente em território português, que serão mantidas até ao vencimento e reembolsadas na maturidade a 100% do valor nominal e que os cupões recebidos são reinvestidos a uma taxa de juro equivalente à TIR obtida. A Oferta é uma oferta pública de subscrição em Portugal e destina-se a investidores indeterminados, ou seja, ao público em geral, desde que sejam pessoas residentes ou com estabelecimento em Portugal. A Oferta não constitui uma oferta ou promoção de venda, compra ou subscrição de quaisquer títulos, particularmente no que respeita a qualquer pessoa a quem estejam legalmente vedadas essas operações, ou em qualquer jurisdição onde seja considerada ilegal a respetiva venda, compra ou subscrição das Obrigações, designadamente os Estados Unidos da América, a Área Económica Europeia (incluindo Reino Unido e Holanda), Austrália, Canadá, África do Sul e o Japão. Em particular as Obrigações não foram nem serão registadas ao abrigo do US Securities Act de 1933 ou de qualquer outra legislação sobre valores mobiliários aplicável nos Estados Unidos da América e não podem ser, direta ou indiretamente, promovidas ou vendidas nos Estados Unidos da América, ou em qualquer dos seus territórios e possessões ou áreas que se encontrem sujeitas a essa jurisdição, ou a uma “US Person” ou em seu benefício, conforme disposto na Rule 902(k), Regulation S do US Securities Act de 1933.
B43: DETALHES
E45: 2021 | G45: 2022 | M45: 2023 | S45: 2024
B46: Preçário | E46: 2021-12-10 | F46: 2021-12-31 | G46: 2022-03-31 | H46: 2022-06-10 | I46: 2022-06-30 | J46: 2022-09-30 | K46: 2022-12-10 | L46: 2022-12-31 | M46: 2023-03-31 | N46: 2023-06-10 | O46: 2023-06-30 | P46: 2023-09-30 | Q46: 2023-12-10 | R46: 2023-12-31 | S46: 2024-03-31 | T46: 2024-06-10 | U46: 2024-06-30 | V46: 2024-09-30 | W46: 2024-12-10
B47: Comissão Guarda Títulos ** | D47: =+IF($F$15=1,0,IF($F$19=1,5,5)) -> 5 | F47: =-$D$47 -> -5 | G47: =-$D$47 -> -5 | I47: =-$D$47 -> -5 | J47: =-$D$47 -> -5 | L47: =-$D$47 -> -5 | M47: =-$D$47 -> -5 | O47: =-$D$47 -> -5 | P47: =-$D$47 -> -5 | R47: =-$D$47 -> -5 | S47: =-$D$47 -> -5 | U47: =-$D$47 -> -5 | V47: =-$D$47 -> -5
B48: Investimento | D48: - | E48: =-F7 -> -2000 | W48: =F7 -> 2000
B49: Comissão de Subscrição** | D49: =IF($F$19=1,0.25%,IF($F$7<250000,0.45%,0.325%)) -> 0.0025 | E49: =+-IF($F$7*D49<12,12,$F$7*D49) -> -12
B50: Imposto do Selo | D50: 0.04 | E50: =+E49*$D$50 -> -0.48
B51: Pagamento de Juros Bruto | D51: - | H51: =+$F$7*$F$9*((6*30)/360) -> 52.5 | K51: =+$F$7*$F$9*((6*30)/360) -> 52.5 | N51: =+$F$7*$F$9*((6*30)/360) -> 52.5 | Q51: =+$F$7*$F$9*((6*30)/360) -> 52.5 | T51: =(+$F$7)*$F$9*((6*30)/360) -> 52.5 | W51: =+$F$7*$F$9*((6*30)/360) -> 52.5
B52: IRS | D52: =+IF($F$21=1, 28%, IF($F$21=2, 22.4%, IF($F$21=3,22.4%,17.5%))) -> 0.28 | H52: =+-H51*$D$52 -> -14.7 | K52: =+-K51*$D$52 -> -14.7 | N52: =+-N51*$D$52 -> -14.7 | Q52: =+-Q51*$D$52 -> -14.7 | T52: =+-T51*$D$52 -> -14.7 | W52: =+-W51*$D$52 -> -14.7
B53: Comissão Rendimentos ** | D53: 0.018 | H53: =-((H51+H52)*$D$53) -> -0.6804 | K53: =-((K51+K52)*$D$53) -> -0.6804 | N53: =-((N51+N52)*$D$53) -> -0.6804 | Q53: =-((Q51+Q52)*$D$53) -> -0.6804 | T53: =-((T51+T52)*$D$53) -> -0.6804 | W53: =-((W51+W52)*$D$53) -> -0.6804
B54: Comissão Reembolso ** | D54: 0.002625 | T54: =+-T48*$D$54 -> 0 | W54: =-(F7*D54) -> -5.25
B55: Portes | D55: =+IF($F$17=1,0,0.4) -> 0.4 | E55: =+IF($F$17=1,0,IF(AND($F$15=2,OR($F$21=2,$F$21=4)),-$D$55,IF(E$47="",-$D$55,0))) -> -0.4 | F55: 0 | G55: 0 | H55: -0.4 | I55: 0 | J55: 0 | K55: -0.4 | L55: 0 | M55: 0 | N55: -0.4 | O55: 0 | P55: 0 | Q55: -0.4 | R55: 0 | S55: 0 | T55: -0.4 | U55: 0 | V55: 0 | W55: -0.4
B56: Despesas Expediente** | D56: =+IF($F$17=1,0,1.05) -> 1.05 | E56: =+IF($F$17=1,0,IF(AND($F$15=2,OR($F$21=2,$F$21=4)),-$D$56,IF(E$47="",-$D$56,0))) -> -1.05 | F56: 0 | G56: 0 | H56: -1.05 | I56: 0 | J56: 0 | K56: -1.05 | L56: 0 | M56: 0 | N56: -1.05 | O56: 0 | P56: 0 | Q56: -1.05 | R56: 0 | S56: 0 | T56: -1.05 | U56: 0 | V56: 0 | W56: -1.05
B57: IVA | D57: 0.23 | E57: =+(E47+E53+E54+E56)*$D$57 -> -0.2415 | F57: =+(F47+F53+F54+F56)*$D$57 -> -1.15 | G57: =+(G47+G53+G54+G56)*$D$57 -> -1.15 | H57: =+(H47+H53+H54+H56)*$D$57 -> -0.397992 | I57: =+(I47+I53+I54+I56)*$D$57 -> -1.15 | J57: -1.15 | K57: -0.397992 | L57: -1.15 | M57: -1.15 | N57: -0.397992 | O57: -1.15 | P57: -1.15 | Q57: -0.397992 | R57: -1.15 | S57: -1.15 | T57: =+(T47+T53+T54+T56)*$D$57 -> -0.397992 | U57: -1.15 | V57: -1.15 | W57: -1.605492
B59: Cash-Flows | E59: =+SUM(E47:E57) -> -2014.1715 | F59: -6.15 | G59: -6.15 | H59: 35.271608 | I59: -6.15 | J59: -6.15 | K59: 35.271608 | L59: -6.15 | M59: -6.15 | N59: 35.271608 | O59: -6.15 | P59: =+SUM(P47:P57) -> -6.15 | Q59: 35.271608 | R59: -6.15 | S59: -6.15 | T59: 35.271608 | U59: -6.15 | V59: -6.15 | W59: 2028.814108
B61: * Acresce IS 4%
B63: ** Acresce IVA 23%
